Cogmind - Beta 13 @@@ ROGUE MODE // 2024.04.09 @ 01:20:07 Player: luckinvolved Result: Destroyed by Y-45 Defender with Beam Rifle Performance ------------- Evolutions (2) 1000 Regions Visited (3) 600 Robots Destroyed (26) 130 Value Destroyed (784) 784 Prototype IDs (0) 0 Alien Tech Used (0) 0 Bonus (0) 0 TOTAL SCORE: 2514 Bonus ------- None Cogmind --------- Core Integrity 0/550 Matter 300/300 Energy 100/100 System Corruption 0% Temperature Cool (9) Movement Core (200) Ox3 Location -8/Materials Parts ------- > --- POWER (1) -------- (None) > --- PROPULSION (4) --- (None) > --- UTILITY (3) ------ Medium Storage Unit Signal Interpreter > --- WEAPON (3) ------- (None) > --- INVENTORY (10) --- Light Nuclear Core Small Storage Unit Improved Sensor Array Particle Gun Peak State ------------ > --- POWER ------------ Light Ion Engine > --- PROPULSION ------- Aluminum Leg Carbon-fiber Leg Carbon-fiber Leg > --- UTILITY ---------- Small Storage Unit Medium Storage Unit Improved Sensor Array > --- WEAPON ----------- Light Assault Rifle Light Assault Rifle Gauss Rifle > --- INVENTORY -------- Wheel Compact Wheel Signal Interpreter Light Assault Rifle [Rating: 19] Favorites ----------- Power Light Ion Engine Engine Light Ion Engine Propulsion Light Treads Treads Light Treads Leg Aluminum Leg Wheel Wheel Utility Small Storage Unit Device Improved Heat Sink Storage Small Storage Unit Processor Signal Interpreter Weapon Light Assault Rifle Energy Gun Particle Gun Ballistic Gun Light Assault Rifle Launcher Rocket Launcher Build | -11 -10 -9 -8 ------- Run | Yrd Mat Mat Mat Slots Evolved 4 | . . 2 2 Power . | . . . . Propulsion 2 | . . 2 . Utility 1 | . . . 1 Weapon 1 | . . . 1 Parts Attached 31 | 5 2 5 19 Power 3 | 1 . 1 1 Engine 3 | 1 . 1 1 Core . | . . . . Reactor . | . . . . Propulsion 10 | 2 . . 8 Treads 2 | 2 . . . Leg 6 | . . . 6 Wheel 2 | . . . 2 Hover . | . . . . Flight . | . . . . Utility 6 | 1 1 . 4 Device 3 | . 1 . 2 Storage 2 | 1 . . 1 Processor 1 | . . . 1 Hackware . | . . . . Protection . | . . . . Artifact . | . . . . Weapon 12 | 1 1 4 6 Energy Gun 3 | . . . 3 Energy Cannon . | . . . . Ballistic Gun 7 | 1 1 2 3 Ballistic Cannon . | . . . . Launcher 2 | . . 2 . Special Weapon . | . . . . Impact Weapon . | . . . . Slashing Weapon . | . . . . Piercing Weapon . | . . . . Special Melee Weapon . | . . . . Unidentified Prototypes . | . . . . Parts Lost 24 | . 1 6 17 Power 3 | . 1 1 1 Propulsion 10 | . . 2 8 Utility 2 | . . . 2 Weapon 9 | . . 3 6 Highest Loss Streak 10 | . 1 6 10 To Critical Strikes . | . . . . Average Slot Usage (%) 70 | . 85 64 62 Engine 6 | . 14 6 1 Treads 12 | . 28 16 . Leg 8 | . . . 18 Device 6 | . 5 11 5 Storage 12 | . 14 11 12 Processor 2 | . . . 4 Energy Gun 1 | . . . 2 Ballistic Gun 17 | . 22 13 15 Launcher 1 | . . 7 . Naked Turns . | . . . . Heaviest Build 24 | 10 12 15 24 Greatest Support 40 | 40 40 40 40 Greatest Overweight (x) 5 | 2 . 2 5 Average Overweight (x) . | . . . . Largest Inventory Capacity 10 | 8 8 8 10 Average Capacity 8 | 7 8 8 9 Most Carried 8 | 8 8 8 6 Average Carried 5 | 5 7 7 3 Final Capacity 10 | 8 8 8 10 Final Carried 8 | 7 8 6 4 Class Distribution -------------------- 74% | Mutant 9% | Scavenger-Skirmisher 6% | Scavenger-Gunner 6% | Scavenger-Mutant Dominant Class ---------------- Mutant | -10/Materials Mutant | -9/Materials Mutant | -8/Materials Resources | -11 -10 -9 -8 ----------- Run | Yrd Mat Mat Mat Matter Collected 897 | 250 83 24 540 Remotely . | . . . . Salvage Created 908 | . 188 125 595 Parts 48 | . 9 7 32 Haulers Intercepted . | . . . . Recyclers Shooed 2 | . 1 . 1 Parts Field Recycled . | . . . . Retrieved Matter . | . . . . Parts Self-Destructed . | . . . . Prevented . | . . . . Kills | -11 -10 -9 -8 ------- Run | Yrd Mat Mat Mat Combat Hostiles Destroyed 20 | . 4 6 10 Guns 15 | . 4 1 10 AOE 5 | . . 5 . Classes Destroyed 7 | . 1 2 4 Worker 2 | . . . 2 Recycler 3 | . . . 3 Operator 1 | . . 1 . Swarmer 4 | . . . 4 Grunt 13 | . 4 5 4 Sentry 1 | . . 1 . Hunter 2 | . . . 2 Best Kill Streak 4 | . 4 4 3 Combat Bots Only 4 | . 4 3 3 Max Kills in Single Turn 2 | . 1 1 2 Gunslinging 1 | . . . 1 Exploded 1 | . . 1 . Melee . | . . . . Uniques/NPCs Destroyed . | . . . . Combat | -11 -10 -9 -8 -------- Run | Yrd Mat Mat Mat Hostile Shots Fired 300 | . 69 21 210 Missed 82 | . 21 7 54 Damage Taken 2988 | . 627 490 1871 Core 849 | . 146 151 552 Absorbed by Shields . | . . . . Core Remaining (%) 67 | 100 41 62 . Volleys Fired 94 | . 16 10 68 Largest 3 | . 2 2 3 Hottest 130 | . 40 66 130 Shots Fired 181 | . 31 20 130 Gun 166 | . 31 5 130 Cannon . | . . . . Launcher 15 | . . 15 . Special . | . . . . Kinetic 156 | . 31 5 120 Thermal 10 | . . . 10 Explosive 15 | . . 15 . Electromagnetic . | . . . . Robot Hit Streak 8 | . 5 8 8 Robot Miss Streak 6 | . 4 1 6 Penetration Max 1 | . . . 1 Secondary Targets 3 | . 1 . 2 Max Gunslinging Chain 1 | . 1 . 1 Shots Hit Robots 113 | . 20 16 77 Core Hits 62 | . 12 13 37 Critical Kills . | . . . . Critical Parts Destroyed . | . . . . Critical Strikes 1 | . . . 1 Burn 1 | . . . 1 Melee Attacks . | . . . . Impact . | . . . . Slashing . | . . . . Piercing . | . . . . Sneak Attacks . | . . . . Combat Hostiles . | . . . . Follow-up Attacks . | . . . . Damage Inflicted 1850 | . 195 667 988 Guns 1243 | . 195 60 988 Cannons . | . . . . Explosions 607 | . . 607 . Melee . | . . . . Ramming . | . . . . Kinetic 1134 | . 195 60 879 Thermal 109 | . . . 109 Explosive 607 | . . 607 . Electromagnetic . | . . . . Impact . | . . . . Slashing . | . . . . Piercing . | . . . . Highest Corruption . | . . . . Average Corruption . | . . . . Corruption Purged . | . . . . Corruption Blocked . | . . . . Overload Shots . | . . . . Overflow Damage 19 | . . 19 . Projectiles . | . . . . Explosions 19 | . . 19 . Melee . | . . . . Knockbacks . | . . . . Impact . | . . . . Kinetic . | . . . . Secondary . | . . . . Self-Inflicted Damage 263 | . . 263 . Shots 9 | . . 9 . Rammed . | . . . . Targets Rammed . | . . . . Kicked . | . . . . Crushed . | . . . . Highest Temperature 201 | . 35 . 201 Average Temperature 37 | . 15 . 46 Received Heat Transfer 978 | . 354 57 567 Siege Activations . | . . . . Robots Corrupted . | . . . . Combat Hostiles . | . . . . Parts Fried . | . . . . Impact Corruptions . | . . . . Robots Melted . | . . . . Combat Hostiles . | . . . . Parts Melted 1 | . . . 1 Heat Transferred 333 | . . . 333 Parts Sabotaged . | . . . . Parts Stolen . | . . . . Parts Stripped . | . . . . Power Chain Reactions . | . . . . Alert | -11 -10 -9 -8 ------- Run | Yrd Mat Mat Mat Peak Influence 309 | . 153 255 309 Initial 107 | . . 59 107 Average 122 | . 67 131 180 Maximum Alert Level 1 | . . 1 1 Low Security (%) 74 | 100 100 70 52 Level 1 25 | . . 29 47 Level 2 . | . . . . Level 3 . | . . . . Level 4 . | . . . . Level 5 . | . . . . High Security . | . . . . Max Security . | . . . . Squads Dispatched 4 | . 1 1 2 Investigation 1 | . . . 1 Extermination . | . . . . Reinforcement 3 | . 1 1 1 Assault . | . . . . Garrison . | . . . . Intercept . | . . . . Searches Triggered . | . . . . Construction Impeded . | . . . . Haulers Reinforced . | . . . . Active Scanning Responses . | . . . . Cargo Convoy Interrupts . | . . . . Stealth | -11 -10 -9 -8 --------- Run | Yrd Mat Mat Mat Distress Signals 8 | . 2 . 6 Communications Jammed . | . . . . Distress Signals . | . . . . Times Spotted 48 | . 12 9 27 Peak Tracking Total 9 | . 5 3 9 Tactical Retreats . | . . . . Traps | -11 -10 -9 -8 ------- Run | Yrd Mat Mat Mat Traps Triggered 2 | . . 1 1 Indirectly . | . . . . Trap Hack Attempts . | . . . . Triggered . | . . . . Disarmed . | . . . . Reprogrammed . | . . . . Reused . | . . . . Traps Extracted . | . . . . Installed . | . . . . Triggered . | . . . . Machines | -11 -10 -9 -8 ---------- Run | Yrd Mat Mat Mat Machines Disabled 2 | . . 2 . Max in Single Turn 1 | . . 1 . Machines Repaired . | . . . . Machines Dismantled . | . . . . Machines Sabotaged . | . . . . Overloaded Fab Kills . | . . . . Hacking | -11 -10 -9 -8 --------- Run | Yrd Mat Mat Mat Machines Accessed 5 | . 2 1 2 Terminals 5 | . 2 1 2 Fabricators . | . . . . Repair Stations . | . . . . Recycling Units . | . . . . Scanalyzers . | . . . . Garrison Access . | . . . . Total Hacks 13 | . 5 3 5 Successful 1 | . 1 . . Failed 12 | . 4 3 5 Catastrophic 5 | . 2 1 2 Database Lockouts . | . . . . Manual 12 | . 5 3 4 Terminals 13 | . 5 3 5 Fabricators . | . . . . Repair Stations . | . . . . Recycling Units . | . . . . Scanalyzers . | . . . . Garrison Access . | . . . . Terminal Hacks 1 | . 1 . . Branch Access Points 1 | . 1 . . Fabricator Hacks . | . . . . Repair Station Hacks . | . . . . Recycling Unit Hacks . | . . . . Scanalyzer . | . . . . Garrison Access Hacks . | . . . . Unauthorized Hacks . | . . . . Terminals . | . . . . Fabricators . | . . . . Repair Stations . | . . . . Recycling Units . | . . . . Scanalyzers . | . . . . Garrison Access . | . . . . Data Cores Recovered . | . . . . Used . | . . . . Hacking Detections 5 | . 2 1 2 Full Trace Events 3 | . 1 . 2 Feedback Events . | . . . . Feedback Blocked . | . . . . Robot Schematics Acquired . | . . . . Robots Built . | . . . . Authchips . | . . . . Time . | . . . . Total Robot Build Rating . | . . . . Part Schematics Acquired . | . . . . Parts Built . | . . . . Authchips . | . . . . Time . | . . . . Total Part Build Rating . | . . . . Parts Repaired . | . . . . Time . | . . . . Parts Recycled . | . . . . Recycled Matter . | . . . . Retrieved Matter . | . . . . Retrieved Components . | . . . . Parts Scanalyzed . | . . . . Part Schematics Acquired . | . . . . Parts Damaged . | . . . . Bothacking | -11 -10 -9 -8 ------------ Run | Yrd Mat Mat Mat Used RIF Installer . | . . . . Robots Hacked . | . . . . Non-combat . | . . . . Combat . | . . . . Robot Hacks Applied . | . . . . Relay Couplers Released . | . . . . Fabnet Peak Effective % . | . . . . Robots Rewired . | . . . . Allies Hacked . | . . . . Hacks Repelled . | . . . . Allies | -11 -10 -9 -8 -------- Run | Yrd Mat Mat Mat Total Allies . | . . . . Largest Group . | . . . . Highest-Rated Group . | . . . . Highest-Rated Ally . | . . . . Total Orders . | . . . . Ally Attacks . | . . . . Total Damage . | . . . . Kills . | . . . . Allies Corrupted . | . . . . Allies Melted . | . . . . Intel | -11 -10 -9 -8 ------- Run | Yrd Mat Mat Mat Robot Analysis Total . | . . . . Derelict Logs Recovered . | . . . . Drone Launches . | . . . . Drone Recoveries . | . . . . Exploration | -11 -10 -9 -8 ------------- Run | Yrd Mat Mat Mat Turns Passed 1127 | 82 354 220 471 Spaces Moved 537 | 53 176 117 191 Core 67 | 29 . 30 8 Treads 287 | 24 176 87 . Legs 183 | . . . 183 Wheels . | . . . . Hover . | . . . . Flight . | . . . . Fastest Speed 50 | 50 160 150 120 Average Speed 145 | 126 160 157 128 Slowest Speed 300 | 160 160 160 300 Overloaded Moves . | . . . . Propulsion Burnouts . | . . . . Robots Hopped . | . . . . Cave-ins Triggered . | . . . . Exploration Rate (%) 18 | 6 32 16 21 Regions Visited 3 Branch Regions . Pre-discovered Areas . | . . . . Known Exits Taken . | . . . . Unknown Exits Taken 3 | 1 1 1 . Scrap Searched . | . . . . Spaces Dug . | . . . . Terrain Destroyed 76 | . . 76 . Melee . | . . . . Projectile . | . . . . AOE 76 | . . 76 . Terrain Rammed . | . . . . Walls Destroyed . | . . . . Machines Disabled . | . . . . Actions | -11 -10 -9 -8 --------- Run | Yrd Mat Mat Mat Total 732 | 67 220 133 312 Wait 53 | . 25 . 28 Move 534 | 52 175 116 191 Hop . | . . . . Pick Up 17 | 10 2 . 5 Fast Attach 14 | 2 1 2 9 Attach 15 | 3 1 3 8 Detach 1 | . . 1 . Swap 2 | . . . 2 Drop 2 | . . 1 1 Fire 94 | . 16 10 68 Melee . | . . . . Ram . | . . . . Kick . | . . . . Crush . | . . . . Escape Stasis . | . . . . Rewire . | . . . . Trap . | . . . . Miscellaneous . | . . . . Route ------- -11/Scrapyard -10/Materials (discovered 2 exits: *Mat / Min) -9/Materials -8/Materials History --------- Turn | Location | Event 6 | -11/Scrapyard | Discovered new exit (range 16) 83 | -11/Scrapyard | Entered Materials 139 | -10/Materials | Identified exit to Mines 320 | -10/Materials | Build established: Mutant 415 | -10/Materials | Discovered new exit (range 15) 431 | -10/Materials | Core integrity fell below 50% 437 | -10/Materials | Entered another Materials area 437 | -9/Materials | Evolved 2 slots: Propulsion x2 649 | -9/Materials | Discovered new exit (range 6) 657 | -9/Materials | Entered another Materials area 657 | -8/Materials | Evolved 2 slots: Utility x1, Weapon x1 666 | -8/Materials | Lost 6 parts (1p2n3w) 1029 | -8/Materials | Core integrity fell below 50% 1059 | -8/Materials | Lost 10 parts (1p5n1u3w) 1112 | -8/Materials | Core integrity fell below 20% 1128 | -8/Materials | Destroyed by Y-45 Defender with Beam Rifle Last Messages --------------- 01059_ K-01 Serf collects debris. 01064_ Acquired 20 matter. 01064_ K-01 Serf collects debris. 01071_ Acquired Aluminum Leg. 01073_ Acquired 10 matter. 01073_ K-01 Serf cleans the Recycling Unit. 01075_ W-25 Informer sends out distress signal. 01083_ Lgt. Assault Rifle destroyed. 01094_ W-25 Informer sends out distress signal. 01098_ W-25 Informer suffers critical hit (Burn). 01106_ K-01 Serf destroyed. 01106_ Switching to secondary target: G-47 Trooper. 01106_ K-01 Serf collects debris. 01109_ Particle Gun destroyed. 01110_ K-01 Serf destroyed. 01111_ Particle Gun destroyed. 01113_ K-01 Serf collects debris. 01114_ K-01 Serf cleans the Terminal. 01117_ Critical hit (Burn: +37). 01119_ Aluminum Leg destroyed. Map ----- +----------------------------------------------------+ | # #???????## ##?????# # ! #???? | | # #???????# ##########"######+######### | | # ""T"" #???????# = | | # """"" |#???????# ! ==* | | ##########???????# % = ! == | | ?????????????????# #### ########### ^ #### | | ?????????????????#######??# #?????????? #????? | | ??????????????????????????# #?????????? #????? | | ??????????????????????????# #?????????? #????? | | ??????????????????????????# #?????????? #????? | | ?????????????????########## #?????????? #????? | | ?????????????????# """ # #?????????? #????? | | ?????????????????# "Y" # #????"????? #????? | | ?????????????????# # #??""""????? #????? | | ?????????????????# # # """""""??? #????? | | ?????????????????# %+ + #? #????? | | ?????????????????# """ %# # ] !#? ??????? | | ?????????????????# "" # % #?????? #????????? | | ?????????????????# """ # #??????????????????? | | ?????????????????# # ########## ?????? | | ?????????????????########## ?????? | | ??????????????????????????# ?????? | | ??????????????????##??????# ! ?????? | | ???????????????#### ????# ########## ?????? | | ???????????? "" =###kY #??????????????????? | | ???????????? T %=@gk #??????????????????? | | ???????????? w Y !####+#####???????????????? | | ?????????????###### ??# ! #???????????????? | | ??????????????????##????#" #???????????????? | | ????????????????????????#" """ !#???????????????? | | ????????????????????????#" """ #???????????????? | | ????????????????????????#T """ #???????????????? | | ????????????????????????#" """ [#???????????????? | | ????????????????????????#" """ #???????????????? | | ????????????????????????#" ? !#???????????????? | | ????????????????????????? ??? #???????????????? | | ????????????????????????? ????####???????????????? | | ?????????????????????????????????????????????????? | | ?????????????????????????????????????????????????? | | ?????????????????????????????????????????????????? | | ?????????????????????????????????????????????????? | | ?????????????????????????????????????????????????? | | ?????????????????????????????????????????????????? | | ?????????????????????????????????????????????????? | | ?????????????????????????????????????????????????? | | ?????????????????????????????????????????????????? | | ?????????????????????????????????????????????????? | | ?????????????????????????????????????????????????? | | ?????????????????????????????????????????????????? | | ?????????????????????????????????????????????????? | +----------------------------------------------------+ Best States ------------- Heat Dissipation 59 Energy Generation 10 Energy Capacity 125 Matter Stores 300 Matter Capacity 300 Sight Range 16 Robot Scan Range 15 Terrain Scan Density 10 Evasion (%) 55 Recoil Reduction 2 Item Schematics ----------------- None Robot Schematics ------------------ None Fabricated ------------ Nothing Alien Tech Used ----------------- None Achievements -------------- None Challenges ------------ None Game ------ Seed GravmagCentriumSuite Manual? 0 Play Time 00:14:37 Cumulative 13.7 hours Start 2024.04.09 @ 01:07:43 End 2024.04.09 @ 01:20:07 Sessions 1 Manual Loads 0 Difficulty Rogue Special Mode None Game No. 31 Rogue 26 Adventurer 5 Explorer 0 Win Type - Total 0 Types 0/0/0/0/0/0/0/0/0 Lore% 2 Gallery% 23 Achievement% 16 Wizard Run 0 Options --------- Layout 0 ASCII 0 Keyboard 0 Movement Mouse Keybinds 0 Fullscreen 2 Font 24/Smallcaps Map View 76x50 Zoom Use 76% Tactical HUD 1 Map Filters NONE Filters NONE Steam 1 RUN: 214b7426-6098-4df7-8cc2-73a85811da91